Cogmind - Beta 14 @@@ ROGUE MODE // 2024.11.12 @ 16:55:41 Player: Gyavenson Result: Destroyed by D-53 Grenadier with Mini Grenade Launcher Performance ------------- Evolutions (0) 0 Regions Visited (2) 400 Robots Destroyed (7) 35 Value Destroyed (242) 242 Prototype IDs (0) 0 Alien Tech Used (0) 0 Bonus (0) 0 TOTAL SCORE: 677 Bonus ------- None Cogmind --------- Core Integrity 0/250 Matter 290/300 Energy 80/250 System Corruption 0% Temperature Cool (0) Movement Core (450) Ox8 Location -10/Mines Parts ------- > --- POWER (1) -------- Ion Engine > --- PROPULSION (2) --- (None) > --- UTILITY (2) ------ Large Storage Unit > --- WEAPON (2) ------- Mining Claw > --- INVENTORY (15) --- Light Ion Engine Aluminum Leg Aluminum Leg Compact Wheel Compact Wheel Small Storage Unit Medium Storage Unit Light Armor Plating Grenade Launcher Peak State ------------ > --- POWER ------------ Light Nuclear Core > --- PROPULSION ------- Wheel > --- UTILITY ---------- Large Storage Unit Terrain Scanner > --- WEAPON ----------- Light Assault Rifle Grenade Launcher > --- INVENTORY -------- Ion Engine Light Ion Engine Aluminum Leg Aluminum Leg Compact Wheel Compact Wheel Small Storage Unit Medium Storage Unit Light Armor Plating Mining Claw [Rating: 9] Favorites ----------- Power Light Nuclear Core Engine Ion Engine Power Core Light Nuclear Core Propulsion Wheel Treads Light Treads Wheel Wheel Utility Terrain Scanner Device Terrain Scanner Storage Small Storage Unit Protection Medium Armor Plating Weapon Light Assault Rifle Energy Gun EM Pulse Gun Ballistic Gun Light Assault Rifle Launcher Grenade Launcher Slashing Weapon Mining Claw Build | -11 -10 -10 ------- Run | Yrd Mat Min Slots Evolved . | . . . Power . | . . . Propulsion . | . . . Utility . | . . . Weapon . | . . . Parts Attached 23 | 7 13 3 Power 5 | 1 3 1 Engine 4 | 1 2 1 Core 1 | . 1 . Reactor . | . . . Propulsion 6 | 3 3 . Treads 3 | 2 1 . Leg . | . . . Wheel 3 | 1 2 . Hover . | . . . Flight . | . . . Utility 5 | 1 4 . Device 1 | . 1 . Storage 3 | 1 2 . Processor . | . . . Hackware . | . . . Protection 1 | . 1 . Artifact . | . . . Weapon 7 | 2 3 2 Energy Gun 3 | 1 1 1 Energy Cannon . | . . . Ballistic Gun 1 | 1 . . Ballistic Cannon . | . . . Launcher 1 | . 1 . Special Weapon . | . . . Impact Weapon . | . . . Slashing Weapon 2 | . 1 1 Piercing Weapon . | . . . Special Melee Weapon . | . . . Unidentified Prototypes . | . . . Parts Lost 9 | . 4 5 Power 1 | . . 1 Propulsion 3 | . 2 1 Utility 2 | . 1 1 Weapon 3 | . 1 2 Highest Loss Streak 5 | . 4 5 To Critical Strikes . | . . . Average Slot Usage (%) 81 | . 80 85 Engine 4 | . 6 . Core 6 | . 3 14 Treads 4 | . 6 . Wheel 12 | . 12 14 Device 8 | . 6 14 Storage 14 | . 14 14 Protection 3 | . 4 . Energy Gun 4 | . 5 2 Ballistic Gun 14 | . 14 14 Launcher 6 | . 3 11 Peak Build Rating 9 | 6 9 9 Average Rating 6 | 4 6 8 On Entrance 5 | . 6 9 Naked Turns . | . . . Heaviest Build 30 | 13 30 30 Greatest Support 40 | 40 20 10 Greatest Overweight (x) 2 | . 2 2 Average Overweight (x) 1 | . . 2 Largest Inventory Capacity 15 | 8 15 15 Average Capacity 10 | 6 8 15 Most Carried 11 | 4 10 11 Average Carried 6 | 1 5 10 Final Capacity 15 | 8 15 15 Final Carried 10 | 4 10 9 Class Distribution -------------------- 100% | Mutant Dominant Class ---------------- Mutant | -10/Materials Mutant | -10/Mines Resources | -11 -10 -10 ----------- Run | Yrd Mat Min Matter Collected 474 | 198 175 101 Remotely . | . . . Salvage Created 200 | . 200 . Parts 14 | . 14 . Haulers Intercepted . | . . . Recyclers Shooed . | . . . Parts Field Recycled . | . . . Retrieved Matter . | . . . Parts Self-Destructed . | . . . Prevented . | . . . Kills | -11 -10 -10 ------- Run | Yrd Mat Min Combat Hostiles Destroyed 6 | . 6 . Guns 3 | . 3 . AOE 3 | . 3 . Classes Destroyed 2 | . 2 . Builder 1 | . 1 . Grunt 6 | . 6 . Best Kill Streak 3 | . 3 . Combat Bots Only 3 | . 3 . Max Kills in Single Turn 2 | . 2 . Gunslinging . | . . . Exploded 1 | . 1 . Melee . | . . . Uniques/NPCs Destroyed . | . . . Combat | -11 -10 -10 -------- Run | Yrd Mat Min Hostile Shots Fired 83 | . 75 8 Missed 18 | . 18 . Damage Taken 1019 | . 703 316 Core 264 | . 180 84 Absorbed by Shields . | . . . Core Remaining (%) 100 | 100 . . Volleys Fired 52 | 2 49 1 Largest 2 | 1 2 1 Hottest 60 | 40 60 20 Shots Fired 66 | 2 63 1 Gun 62 | 2 59 1 Cannon . | . . . Launcher 4 | . 4 . Special . | . . . Kinetic 50 | . 49 1 Thermal . | . . . Explosive 4 | . 4 . Electromagnetic 12 | 2 10 . Robot Hit Streak 13 | . 13 . Robot Miss Streak 3 | . 3 2 Penetration Max . | . . . Secondary Targets . | . . . Shots Hit Robots 40 | . 40 . Core Hits 18 | . 18 . Critical Kills . | . . . Critical Parts Destroyed . | . . . Critical Strikes . | . . . Melee Attacks 2 | . 1 1 Impact . | . . . Slashing 2 | . 1 1 Piercing . | . . . Sneak Attacks . | . . . Combat Hostiles . | . . . Follow-up Attacks . | . . . Damage Inflicted 603 | . 603 . Guns 337 | . 337 . Cannons . | . . . Explosions 266 | . 266 . Melee . | . . . Ramming . | . . . Kinetic 234 | . 234 . Thermal 52 | . 52 . Explosive 214 | . 214 . Electromagnetic 103 | . 103 . Impact . | . . . Slashing . | . . . Piercing . | . . . Highest Corruption . | . . . Average Corruption . | . . . Corruption Purged . | . . . Corruption Blocked . | . . . Overload Shots . | . . . Overflow Damage . | . . . Projectiles . | . . . Explosions . | . . . Melee . | . . . Knockbacks . | . . . Impact . | . . . Kinetic . | . . . Secondary . | . . . Self-Inflicted Damage 63 | . 63 . Shots 2 | . 2 . Rammed . | . . . Targets Rammed . | . . . Kicked . | . . . Crushed . | . . . Highest Temperature 231 | . 231 2 Average Temperature 66 | . 67 2 Received Heat Transfer 348 | . 348 . Effects 2 | . 2 . Interference 2 | . 2 . Siege Activations . | . . . Robots Corrupted . | . . . Combat Hostiles . | . . . Parts Fried . | . . . Impact Corruptions . | . . . Robots Melted . | . . . Combat Hostiles . | . . . Parts Melted . | . . . Heat Transferred 50 | . 50 . Parts Sabotaged . | . . . Parts Stolen . | . . . Parts Stripped . | . . . Power Chain Reactions 1 | . 1 . Alert | -11 -10 -10 ------- Run | Yrd Mat Min Peak Influence 219 | . 219 7 Initial 7 | . . 7 Average 45 | . 69 6 Maximum Alert Level 1 | . 1 . Low Security (%) 94 | 100 91 100 Level 1 5 | . 8 . Level 2 . | . . . Level 3 . | . . . Level 4 . | . . . Level 5 . | . . . High Security . | . . . Max Security . | . . . Squads Dispatched 1 | . 1 . Investigation . | . . . Extermination . | . . . Reinforcement 1 | . 1 . Assault . | . . . Garrison . | . . . Intercept . | . . . Searches Triggered . | . . . Construction Impeded . | . . . Haulers Reinforced . | . . . Active Scanning Responses . | . . . Cargo Convoy Interrupts . | . . . Stealth | -11 -10 -10 --------- Run | Yrd Mat Min Distress Signals . | . . . Communications Jammed . | . . . Distress Signals . | . . . Times Spotted 17 | . 15 2 Peak Tracking Total 6 | . 6 2 Tactical Retreats 2 | . 2 . Traps | -11 -10 -10 ------- Run | Yrd Mat Min Traps Triggered 1 | . 1 . Indirectly . | . . . Trap Hack Attempts . | . . . Triggered . | . . . Disarmed . | . . . Reprogrammed . | . . . Reused . | . . . Traps Extracted . | . . . Installed . | . . . Triggered . | . . . Machines | -11 -10 -10 ---------- Run | Yrd Mat Min Machines Disabled 2 | . 2 . Max in Single Turn 1 | . 1 . Machines Repaired . | . . . Machines Dismantled . | . . . Machines Sabotaged . | . . . Overloaded Fab Kills . | . . . Hacking | -11 -10 -10 --------- Run | Yrd Mat Min Machines Accessed 1 | . 1 . Terminals 1 | . 1 . Fabricators . | . . . Repair Stations . | . . . Recycling Units . | . . . Scanalyzers . | . . . Garrison Access . | . . . Total Hacks 1 | . 1 . Successful 1 | . 1 . Failed . | . . . Catastrophic . | . . . Database Lockouts . | . . . Manual . | . . . Terminals 1 | . 1 . Fabricators . | . . . Repair Stations . | . . . Recycling Units . | . . . Scanalyzers . | . . . Garrison Access . | . . . Terminal Hacks 1 | . 1 . Locate Traps 1 | . 1 . Fabricator Hacks . | . . . Repair Station Hacks . | . . . Recycling Unit Hacks . | . . . Scanalyzer . | . . . Garrison Access Hacks . | . . . Unauthorized Hacks . | . . . Terminals . | . . . Fabricators . | . . . Repair Stations . | . . . Recycling Units . | . . . Scanalyzers . | . . . Garrison Access . | . . . Data Cores Recovered . | . . . Used . | . . . Hacking Detections . | . . . Full Trace Events . | . . . Feedback Events . | . . . Feedback Blocked . | . . . Robot Schematics Acquired . | . . . Robots Built . | . . . Authchips . | . . . Time . | . . . Total Robot Build Rating . | . . . Part Schematics Acquired . | . . . Parts Built . | . . . Authchips . | . . . Time . | . . . Total Part Build Rating . | . . . Parts Repaired . | . . . Time . | . . . Parts Recycled . | . . . Recycled Matter . | . . . Retrieved Matter . | . . . Retrieved Components . | . . . Parts Scanalyzed . | . . . Part Schematics Acquired . | . . . Parts Damaged . | . . . Bothacking | -11 -10 -10 ------------ Run | Yrd Mat Min Used RIF Installer . | . . . Robots Hacked . | . . . Non-combat . | . . . Combat . | . . . Robot Hacks Applied . | . . . Relay Couplers Released . | . . . Fabnet Peak Effective % . | . . . Robots Rewired . | . . . Allies Hacked . | . . . Hacks Repelled . | . . . Allies | -11 -10 -10 -------- Run | Yrd Mat Min Total Allies . | . . . Largest Group . | . . . Highest-Rated Group . | . . . Highest-Rated Ally . | . . . Total Orders . | . . . Ally Attacks . | . . . Total Damage . | . . . Kills . | . . . Allies Corrupted . | . . . Allies Melted . | . . . Intel | -11 -10 -10 ------- Run | Yrd Mat Min Robot Analysis Total . | . . . Derelict Logs Recovered 1 | . . 1 Drone Launches . | . . . Drone Recoveries . | . . . Exploration | -11 -10 -10 ------------- Run | Yrd Mat Min Turns Passed 747 | 78 469 200 Spaces Moved 542 | 61 307 174 Core 32 | 12 20 . Treads 14 | 7 7 . Legs . | . . . Wheels 496 | 42 280 174 Hover . | . . . Flight . | . . . Fastest Speed 50 | 50 80 110 Average Speed 106 | 97 105 110 Slowest Speed 160 | 160 160 110 Overloaded Moves . | . . . Propulsion Burnouts . | . . . Robots Hopped . | . . . Cave-ins Triggered . | . . . Exploration Rate (%) 28 | 4 39 43 Regions Visited 2 Branch Regions 1 Pre-discovered Areas . | . . . Known Exits Taken . | . . . Unknown Exits Taken 2 | 1 1 . Scrap Searched 2 | . . 2 Spaces Dug 1 | . 1 . Terrain Destroyed 23 | . 23 . Melee 1 | . 1 . Projectile . | . . . AOE 22 | . 22 . Terrain Rammed . | . . . Walls Destroyed . | . . . Machines Disabled . | . . . Actions | -11 -10 -10 --------- Run | Yrd Mat Min Total 644 | 74 390 180 Wait 18 | . 18 . Move 540 | 60 306 174 Hop . | . . . Pick Up 9 | 5 3 1 Fast Attach 11 | 5 6 . Attach 4 | 1 1 2 Detach . | . . . Swap 8 | 1 6 1 Drop . | . . . Fire 52 | 2 49 1 Melee 2 | . 1 1 Ram . | . . . Kick . | . . . Crush . | . . . Escape Stasis . | . . . Rewire . | . . . Trap . | . . . Miscellaneous . | . . . Route ------- -11/Scrapyard -10/Materials -10/Mines (discovered 1 exit: [*Mat]) History --------- Turn | Location | Event 6 | -11/Scrapyard | Discovered new exit (range 16) 79 | -11/Scrapyard | Entered Materials 300 | -10/Materials | Build established: Mutant 340 | -10/Materials | Lost 4 parts (2n1u1w) 414 | -10/Materials | Core integrity fell below 50% 530 | -10/Materials | Discovered new exit (range 8) 548 | -10/Materials | Entered Mines 709 | -10/Mines | Discovered new exit (range 9) 733 | -10/Mines | Assembled infested the area 744 | -10/Mines | Core integrity fell below 20% 748 | -10/Mines | Destroyed by D-53 Grenadier with Mini Grenade Launcher Last Messages --------------- 00672_ K-01 Serf collects debris. 00700_ Searching scrap... 00700_ Found Sml. Laser. 00700_ Found 42 Matter. 00701_ Acquired 37 matter. 00702_ Acquired Sml. Laser. 00704_ Acquired 5 matter. 00709_ EXIT=FOUND 00724_ Acquired Grenade Launcher. 00733_ ALERT: Infestation in the mines, dispatching Demolisher response squad. 00742_ C-30 ARC bursts open, deploying its payload. 00742_ D-53 Grenadier unfolds itself. 00742_ Sml. Laser destroyed. 00742_ Wheel destroyed. 00743_ Lgt. Assault Rifle destroyed. 00745_ The unstable cave ceiling collapses. 00746_ Lgt. Nuclear Core destroyed. 00747_ Terrain Scanner destroyed. Map ----- +----------------------------------------------------+ | ?????????????????????????????????????????????????? | | ?????????????????????????????????????????????????? | | ?????????????????????????????????????????????????? | | ?????????????????????????????????????????????????? | | ?????????????????????????????????????????????????? | | ?????????????????????????????????????????????????? | | ?????????????????????????????????????????????????? | | ?????????????????????????????????????????????????? | | ?????????????????????????????????????????????????? | | ?????????????????????????????????????????????????? | | ?????????????????????????????????????????????????? | | ???????????????????????????? ?????????????? ????? | | ????????????????????????????????#????????? ????? | | ????????????????????????#??????? #?????? ???? | | ????????????????????#??????????? ##???? ???? | | ???????????????????????????????? #??? ??? | | ????????????????????????? ??????# ##?# ???? | | ????????????????????????????????# ## #????? | | ????????????????????????????????# #?????? | | ????????????????????????????????# #??????? | | ??????????????????????#######???# #???????? | | ??????????????????##?## ###?# #??#?????? | | ?????????????? ???? # #### #???#??????? | | ????????????????????# ## ##??????????? | | ????????????????????## r ##??????????? | | ????????????????????# d @ #??????????? | | ????????????????????# d #??????????? | | ???????????????????## ##??#???????? | | ???????????????###?## ##??????????? | | ???????????????# ## ## k ###??#?????? | | ???????????????# ########## ##????????? | | ???????????????# ##???????## #????????? | | ?##?????????#??# #???????## k #????????? | | ##?????????# #??????## ##????????? | | #?????#??# #????## #?????????? | | ##??????# #???# ##?????????? | | #??????# < #???# ###??????????? | | ???????## #??# ##????????????? | | # ????????# ## #?## ###????????????? | | #???????? #?## ##??# ##??????????????? | | ????#???# #????#####?### #######?????????? | | #???????? #???????#???# #??????? | | ##?????? ????????????# ##### ##????????? | | ##????# #????????????# ###???????????????? | | #???## #?????????????# #????????? ???????? | | #?????? #????#####?????# #????#????????????? | | ##???????????## ####??# #?????????????????? | | #?#??######## ##?# #???####??????????? | | # #????# ### ##??# ????? ?????? | | # ##????# ###### ##?# #???????????? | +----------------------------------------------------+ Best States ------------- Heat Dissipation 25 Energy Generation 14 Energy Capacity 250 Matter Stores 300 Matter Capacity 300 Sight Range 16 Terrain Scan Range 14 Terrain Scan Density 10 Armor Coverage 225 Evasion (%) 50 Recoil Reduction 2 Item Schematics ----------------- None Robot Schematics ------------------ None Fabricated ------------ Nothing Alien Tech Used ----------------- None Achievements -------------- None Challenges ------------ None Game ------ Seed MachineRiotPower Manual? 0 Play Time 00:12:56 Cumulative 19.5 hours Start 2024.11.12 @ 16:39:03 End 2024.11.12 @ 16:55:41 Sessions 2 Manual Loads 0 Difficulty Rogue Special Mode None Game No. 12 Rogue 9 Adventurer 1 Explorer 2 Win Type - Total 0 Types 0/0/0/0/0/0/0/0/0 Lore% 11 Gallery% 27 Achievement% 22 Wizard Run 0 Options --------- Layout 1 ASCII 0 Keyboard 0 Movement Mouse Keybinds 0 Fullscreen 2 Font 24/Tamsyn Map View 50x35 Zoom Use 0% Tactical HUD 1 Map Filters NONE Filters NONE Steam 1 RUN: 9a3eab43-7ecf-4e24-b5ad-5e4219d1ac12